fUSD/lending_fUSD_20250101
["ID","MTS","AMOUNT","RATE_DAILY","PERIOD"]
[347367936,1735737040615,-572.6,0.00010958,2]
[347367937,1735737040626,-500.0,0.00010958,2]
[347367938,1735737040639,-1200.72,0.00010958,2]
[347367939,1735737040651,-500.0,0.00010958,2]
[347367940,1735737040663,-500.0,0.00010958,2]
[347367941,1735737040676,-500.0,0.00010958,2]
[347367942,1735737040688,-500.0,0.00010958,2]
[347367943,1735737040701,-2983.83,0.00010958,2]
[347367944,1735737040713,-500.0,0.00010958,2]
[347367945,1735737040725,-435.27620533,0.00010958,2]
[347367946,1735737040737,-563.08,0.00010958,2]
[347367947,1735737040748,-500.0,0.00010958,2]
[347367948,1735737040760,-1275.9,0.00010958,2]
[347367949,1735737040772,-500.0,0.00010958,2]
[347367950,1735737040784,-1822.86,0.00010958,2]
[347367951,1735737040796,-1687.89,0.00010958,2]
[347367952,1735737040808,-639.08,0.00010958,2]
[347367953,1735737040819,-500.0,0.00010958,2]
[347367954,1735737040832,-500.0,0.00010958,2]
[347367955,1735737040845,-1479.02,0.00010958,2]
[347367956,1735737040857,-581.82,0.00010958,2]
[347367957,1735737040875,-946.21,0.00010958,2]
[347367958,1735737040890,-500.0,0.00010958,2]
[347367959,1735737040903,-500.0,0.00010958,2]
[347367960,1735737040916,-1989.93,0.00010958,2]
[347367961,1735737040928,-2278.81,0.00010958,2]
[347367962,1735737040942,-500.0,0.00010958,2]
[347367963,1735737040954,-500.0,0.00010958,2]
[347367964,1735737040966,-3116.96,0.00010958,2]
[347367965,1735737040977,-689.58,0.00010958,2]
[347367966,1735737040990,-2744.92,0.00010958,2]
[347367967,1735737041002,-719.9,0.00010958,2]
[347367968,1735737041014,-500.0,0.00010958,2]
[347367969,1735737041026,-500.0,0.00010958,2]
[347367970,1735737041038,-500.0,0.00010958,2]
[347367971,1735737041048,-500.0,0.00010958,2]
[347367972,1735737041058,-633.68,0.00010958,2]
[347367973,1735737041068,-939.24,0.00010958,2]
[347367974,1735737041077,-707.62,0.00010958,2]
[347367975,1735737041087,-1124.19,0.00010958,2]
[347367976,1735737041096,-2290.11,0.00010958,2]
[347367977,1735737041106,-500.0,0.00010958,2]
[347367978,1735737041117,-995.79,0.00010958,2]
[347367979,1735737041126,-500.0,0.00010958,2]
[347367980,1735737041136,-587.69,0.00010958,2]
[347367981,1735737041146,-500.0,0.00010958,2]
[347367982,1735737041156,-500.0,0.00010958,2]
[347367983,1735737041165,-674.64,0.00010958,2]
[347367984,1735737041175,-500.0,0.00010958,2]
[347367985,1735737041677,-645.73,0.00010958,2]
[347367986,1735737041709,-954.12,0.00010958,2]
[347367987,1735737041722,-500.0,0.00010958,2]
[347367988,1735737041732,-2098.39,0.00010958,2]
[347367989,1735737041743,-1154.64,0.00010958,2]
[347367990,1735737041756,-3974.96,0.00010958,2]
[347367991,1735737041766,-2130.91,0.00010958,2]
[347367992,1735737041776,-526.69,0.00010958,2]
[347367993,1735737041786,-500.0,0.00010958,2]
[347367994,1735737041795,-500.0,0.00010958,2]
[347367995,1735737041804,-535.81,0.00010958,2]
[347367996,1735737041814,-1640.28,0.00010958,2]
[347367997,1735737041824,-612.26,0.00010958,2]
[347367998,1735737041836,-500.0,0.00010958,2]
[347367999,1735737041846,-500.0,0.00010958,2]
[347368000,1735737041855,-1239.18,0.00010958,2]
[347368001,1735737041871,-4779.04,0.00010958,2]
[347368002,1735737041881,-347.28580512,0.00010958,2]
[347368003,1735737041891,-500.0,0.00010958,2]
[347368004,1735737041901,-500.0,0.00010958,2]
[347368005,1735737041912,-500.0,0.00010958,2]
[347368006,1735737041922,-500.0,0.00010958,2]
[347368007,1735737041932,-1275.03,0.00010958,2]
[347368008,1735737041944,-692.61,0.00010958,2]
[347368009,1735737041953,-682.69,0.00010958,2]
[347368010,1735737041962,-559.0,0.00010958,2]
[347368011,1735737041972,-500.0,0.00010958,2]
[347368012,1735737041981,-191.80746674,0.00010958,2]
[347368013,1735737041991,-2426.91,0.00010958,2]
[347368014,1735737042000,-500.0,0.00010958,2]
[347368015,1735737042010,-500.0,0.00010958,2]
[347368016,1735737042019,-235.40787081,0.00010958,2]
[347368017,1735737042028,-2264.51,0.00010958,2]
[347368018,1735737042037,-500.0,0.00010958,2]
[347368019,1735737042047,-879.67,0.00010958,2]
[347368020,1735737042056,-524.38,0.00010958,2]
[347368021,1735737042066,-500.0,0.00010958,2]
[347368022,1735737042075,-2112.5,0.00010958,2]
[347368023,1735737042085,-500.0,0.00010958,2]
[347368024,1735737042095,-500.0,0.00010958,2]
[347368025,1735737042104,-500.0,0.00010958,2]
[347368026,1735737042114,-1577.94,0.00010958,2]
[347368027,1735737042124,-1966.91,0.00010958,2]
[347368028,1735737042136,-613.91,0.00010958,2]
[347368029,1735737042147,-500.0,0.00010958,2]
[347368030,1735737042158,-500.0,0.00010958,2]
[347368031,1735737042168,-5708.96,0.00010958,2]
[347368032,1735737042177,-500.0,0.00010958,2]
[347368033,1735737042187,-642.26,0.00010958,2]
[347368034,1735737042196,-500.0,0.00010958,2]
[347368035,1735737042206,-3463.08,0.00010958,2]
[347368036,1735737042215,-500.0,0.00010958,2]
[347368037,1735737042225,-500.0,0.00010958,2]
[347368038,1735737042235,-544.75,0.00010958,2]
[347368039,1735737042244,-500.0,0.00010958,2]
[347368040,1735737042255,-602.49,0.00010958,2]
[347368041,1735737042266,-1343.52,0.00010958,2]
[347368042,1735737042275,-1619.45,0.00010958,2]
[347368043,1735737042286,-843.62,0.00010958,2]
[347368044,1735737042295,-500.0,0.00010958,2]
[347368045,1735737042305,-500.0,0.00010958,2]
[347368046,1735737042315,-776.56,0.00010958,2]
[347368047,1735737042326,-1028.52,0.00010958,2]
[347368048,1735737042336,-500.0,0.00010958,2]
[347368049,1735737042346,-500.42362975,0.00010958,2]
[347368050,1735737042355,-1257.44,0.00010958,2]
[347368051,1735737042366,-1323.67,0.00010958,2]
[347368052,1735737042376,-1565.28,0.00010958,2]
[347368053,1735737042387,-500.0,0.00010958,2]
[347368054,1735737042396,-500.0,0.00010958,2]
[347368055,1735737042407,-2335.87,0.00010958,2]
[347368056,1735737042417,-500.0,0.00010958,2]
[347368057,1735737042427,-500.0,0.00010958,2]
[347368058,1735737042436,-2134.4,0.00010958,2]
[347368059,1735737042446,-500.0,0.00010958,2]
[347368060,1735737042456,-500.0,0.00010958,2]
[347368061,1735737042466,-500.0,0.00010958,2]
[347368062,1735737042475,-500.0,0.00010958,2]
[347368063,1735737042484,-500.16285087,0.00010958,2]
[347368064,1735737042494,-825.07,0.00010958,2]
[347368065,1735737042503,-500.0,0.00010958,2]
[347368066,1735737042512,-1229.94,0.00010958,2]
[347368067,1735737042521,-500.0,0.00010958,2]
[347368068,1735737042531,-500.0,0.00010958,2]
[347368069,1735737042540,-500.0,0.00010958,2]
[347368070,1735737042549,-1435.8,0.00010958,2]
[347368071,1735737042558,-500.0,0.00010958,2]
[347368072,1735737042568,-857.79,0.00010958,2]
[347368073,1735737042577,-1311.22,0.00010958,2]
[347368075,1735737042587,-1020.19,0.00010958,2]
[347368077,1735737042597,-4037.44,0.00010958,2]
[347368079,1735737042606,-514.96,0.00010958,2]
[347368080,1735737042616,-1775.56,0.00010958,2]
[347368081,1735737042625,-641.42,0.00010958,2]
[347368082,1735737042635,-680.65,0.00010958,2]
[347368083,1735737042644,-1162.15,0.00010958,2]
[347368084,1735737042653,-1979.49,0.00010958,2]
[347368085,1735737042663,-1174.79,0.00010958,2]
[347368086,1735737042675,-500.0,0.00010958,2]
[347368087,1735737042684,-1669.37,0.00010958,2]
[347368088,1735737042694,-500.0,0.00010958,2]
[347368089,1735737042704,-1136.58,0.00010958,2]
[347368090,1735737042713,-203.78635793,0.00010958,2]
[347368092,1735737042723,-612.71,0.00010958,2]
[347368094,1735737042732,-2195.67,0.00010958,2]
[347368095,1735737042742,-500.0,0.00010958,2]
[347368096,1735737042751,-1310.64,0.00010958,2]
[347368097,1735737042761,-2186.69,0.00010958,2]
[347368098,1735737042771,-500.0,0.00010958,2]
[347368100,1735737042780,-10344.29,0.00010958,2]
[347368102,1735737042790,-1015.05,0.00010958,2]
[347368104,1735737042799,-500.0,0.00010958,2]
[347368106,1735737042808,-799.1,0.00010958,2]
[347368108,1735737042818,-901.62,0.00010958,2]
[347368110,1735737042827,-500.0,0.00010958,2]
[347368112,1735737042837,-500.0,0.00010958,2]
[347368114,1735737042847,-500.0,0.00010958,2]
[347368116,1735737042857,-3058.75,0.00010958,2]
[347368119,1735737042871,-1299.41,0.00010958,2]
[347368121,1735737042880,-500.0,0.00010958,2]
[347368123,1735737042889,-697.51,0.00010958,2]
[347368125,1735737042898,-500.0,0.00010958,2]
[347368126,1735737042909,-500.0,0.00010958,2]
[347368127,1735737042918,-500.0,0.00010958,2]
[347368128,1735737042929,-500.0,0.00010958,2]
[347368129,1735737042939,-2387.09,0.00010958,2]
[347368130,1735737042948,-660.75,0.00010958,2]
[347368131,1735737042959,-2083.26,0.00010958,2]
[347368132,1735737042967,-1904.34,0.00010958,2]
[347368133,1735737042977,-1533.69,0.00010958,2]
[347368134,1735737042986,-500.0,0.00010958,2]
[347368135,1735737042995,-500.0,0.00010958,2]
[347368136,1735737043004,-500.0,0.00010958,2]
[347368137,1735737043013,-761.19,0.00010958,2]
[347368138,1735737043022,-1183.13,0.00010958,2]
[347368139,1735737043032,-11090.46,0.00010958,2]
[347368140,1735737043041,-500.14453577,0.00010958,2]
[347368141,1735737043050,-500.0,0.00010958,2]
[347368142,1735737043060,-500.0,0.00010958,2]
[347368143,1735737043069,-513.64,0.00010958,2]
[347368144,1735737043078,-1608.86,0.00010958,2]
[347368145,1735737043087,-833.68,0.00010958,2]
[347368146,1735737043096,-742.22,0.00010958,2]
[347368147,1735737043106,-500.0,0.00010958,2]
[347368148,1735737043114,-500.0,0.00010958,2]
[347368149,1735737043123,-1813.22,0.00010958,2]
[347368150,1735737043133,-500.0,0.00010958,2]
[347368151,1735737043142,-548.38,0.00010958,2]
[347368152,1735737043151,-500.0,0.00010958,2]
[347368153,1735737043161,-611.48,0.00010958,2]
[347368154,1735737043171,-2498.75,0.00010958,2]
[347368155,1735737043184,-743.14,0.00010958,2]
[347368156,1735737043196,-500.0,0.00010958,2]
[347368157,1735737043208,-3837.74,0.00010958,2]
[347368158,1735737043220,-500.0,0.00010958,2]
[347368159,1735737043231,-500.0,0.00010958,2]
[347368160,1735737043240,-500.0,0.00010958,2]
[347368161,1735737043250,-500.0,0.00010958,2]
[347368162,1735737043259,-669.74,0.00010958,2]
[347368164,1735737043268,-500.0,0.00010958,2]
[347368166,1735737043277,-717.53,0.00010958,2]
[347368167,1735737043286,-1647.34,0.00010958,2]
[347368168,1735737043296,-1445.11,0.00010958,2]
[347368170,1735737043305,-739.33,0.00010958,2]
[347368171,1735737043314,-4145.12,0.00010958,2]
[347368172,1735737043323,-500.0,0.00010958,2]
[347368173,1735737043332,-500.0,0.00010958,2]
[347368174,1735737043341,-5978.32,0.00010958,2]
[347368175,1735737043350,-500.0,0.00010958,2]
[347368176,1735737043359,-500.0,0.00010958,2]
[347368177,1735737043368,-1502.83,0.00010958,2]
[347368178,1735737043377,-716.8,0.00010958,2]
[347368179,1735737043388,-985.39,0.00010958,2]
[347368180,1735737043397,-614.37,0.00010958,2]
[347368181,1735737043406,-500.0,0.00010958,2]
[347368182,1735737043416,-912.89,0.00010958,2]
[347368183,1735737043425,-510.25,0.00010958,2]
[347368184,1735737043435,-500.0,0.00010958,2]
[347368185,1735737043444,-500.0,0.00010958,2]
[347368186,1735737043453,-579.43,0.00010958,2]
[347368187,1735737043463,-767.77,0.00010958,2]
[347368188,1735737043472,-500.0,0.00010958,2]
[347368189,1735737043482,-500.0,0.00010958,2]
[347368190,1735737043491,-3825.18,0.00010958,2]
[347368191,1735737043501,-500.0,0.00010958,2]
[347368192,1735737043510,-500.0,0.00010958,2]
[347368193,1735737043520,-500.18172553,0.00010958,2]
[347368194,1735737043530,-500.0,0.00010958,2]
[347368195,1735737043539,-1048.01,0.00010958,2]
[347368196,1735737043549,-500.57860381,0.00010958,2]
[347368197,1735737043558,-500.0,0.00010958,2]
[347368198,1735737043567,-2913.27,0.00010958,2]
[347368199,1735737043577,-2347.53,0.00010958,2]
[347368200,1735737043587,-1800.25,0.00010958,2]
[347368201,1735737043596,-1406.4,0.00010958,2]
[347368202,1735737043606,-922.86,0.00010958,2]
[347368203,1735737043615,-500.0,0.00010958,2]
[347368204,1735737043624,-1660.05,0.00010958,2]
[347368205,1735737043635,-500.0,0.00010958,2]
[347368206,1735737043644,-500.0,0.00010958,2]
[347368207,1735737043654,-1896.41,0.00010958,2]
[347368208,1735737043663,-500.0,0.00010958,2]
[347368209,1735737043673,-500.0,0.00010958,2]
[347368210,1735737043682,-1778.2,0.00010958,2]
[347368211,1735737043691,-500.0,0.00010958,2]
[347368212,1735737043701,-1420.53,0.00010958,2]
[347368213,1735737043710,-500.0,0.00010958,2]
[347368214,1735737043720,-500.0,0.00010958,2]
[347368215,1735737043729,-25422.58,0.00010958,2]
[347368216,1735737043739,-873.04,0.00010958,2]
[347368217,1735737043748,-500.0,0.00010958,2]
[347368218,1735737043757,-500.0,0.00010958,2]
[347368219,1735737043767,-2068.94,0.00010958,2]
[347368220,1735737043776,-594.73682738,0.00010958,2]
[347368221,1735737043785,-2102.83,0.00010958,2]
[347368222,1735737043795,-911.4,0.00010958,2]
[347368223,1735737043804,-6561.36,0.00010958,2]
[347368224,1735737043813,-500.0,0.00010958,2]
[347368225,1735737043823,-753.19,0.00010958,2]
[347368226,1735737043832,-500.0,0.00010958,2]
[347368227,1735737043842,-500.0,0.00010958,2]
[347368228,1735737043851,-500.0,0.00010958,2]
[347368229,1735737043864,-1375.62,0.00010958,2]
[347368230,1735737043875,-500.0,0.00010958,2]
[347368231,1735737043886,-1417.29,0.00010958,2]
[347368232,1735737043895,-500.0,0.00010958,2]
[347368233,1735737043904,-1538.61,0.00010958,2]
[347368234,1735737043914,-500.0,0.00010958,2]
[347368235,1735737043924,-1025.07,0.00010958,2]
[347368236,1735737043933,-1305.62,0.00010958,2]
[347368237,1735737043943,-606.43,0.00010958,2]
[347368238,1735737043953,-500.0,0.00010958,2]
[347368239,1735737043963,-593.03,0.00010958,2]
[347368240,1735737043974,-2373.99,0.00010958,2]
[347368241,1735737043984,-500.0,0.00010958,2]
[347368242,1735737043994,-500.0,0.00010958,2]
[347368243,1735737044004,-672.83,0.00010958,2]
[347368244,1735737044014,-1455.49,0.00010958,2]
[347368245,1735737044023,-3698.37,0.00010958,2]
[347368246,1735737044033,-500.0,0.00010958,2]
[347368247,1735737044043,-500.0,0.00010958,2]
[347368248,1735737044053,-1050.39,0.00010958,2]
[347368249,1735737044062,-500.0,0.00010958,2]
[347368250,1735737044072,-4209.1,0.00010958,2]
[347368251,1735737044081,-2269.66,0.00010958,2]
[347368252,1735737044091,-500.23604316,0.00010958,2]
[347368253,1735737044100,-500.0,0.00010958,2]
[347368254,1735737044109,-16362.99,0.00010958,2]
[347368255,1735737044119,-500.0,0.00010958,2]
[347368256,1735737044128,-500.0,0.00010958,2]
[347368257,1735737044139,-500.0,0.00010958,2]
[347368258,1735737044149,-1279.93,0.00010958,2]
[347368259,1735737044158,-500.0,0.00010958,2]
[347368260,1735737044168,-631.62386648,0.00010958,2]
[347368261,1735737044177,-817.33,0.00010958,2]
[347368262,1735737044187,-500.0,0.00010958,2]
[347368263,1735737044196,-500.0,0.00010958,2]
[347368264,1735737044207,-2396.4,0.00010958,2]
[347368265,1735737044216,-506.71,0.00010958,2]
[347368266,1735737044226,-895.63,0.00010958,2]
[347368267,1735737044235,-500.0,0.00010958,2]
[347368268,1735737044244,-2511.91,0.00010958,2]
[347368269,1735737044254,-500.0,0.00010958,2]
[347368270,1735737044264,-500.0,0.00010958,2]
[347368271,1735737044273,-500.0,0.00010958,2]
[347368272,1735737044283,-500.0,0.00010958,2]
[347368273,1735737044292,-500.0,0.00010958,2]
[347368274,1735737044302,-1493.53,0.00010958,2]
[347368275,1735737044311,-1576.24,0.00010958,2]
[347368276,1735737044320,-606.73,0.00010958,2]
[347368277,1735737044330,-500.0,0.00010958,2]
[347368278,1735737044339,-500.0,0.00010958,2]
[347368279,1735737044349,-1468.03,0.00010958,2]
[347368280,1735737044359,-2121.28,0.00010958,2]
[347368281,1735737044368,-534.86,0.00010958,2]
[347368282,1735737044378,-842.78,0.00010958,2]
[347368283,1735737044389,-1710.86,0.00010958,2]
[347368284,1735737044400,-500.0,0.00010958,2]
[347368285,1735737044410,-500.39547438,0.00010958,2]
[347368286,1735737044419,-2068.73,0.00010958,2]
[347368287,1735737044430,-302.58624325,0.00010958,2]
[347368288,1735737044439,-500.0,0.00010958,2]
[347368289,1735737044449,-865.56,0.00010958,2]
[347368290,1735737044459,-1693.48,0.00010958,2]
[347368291,1735737044468,-1411.36,0.00010958,2]
[347368292,1735737044478,-500.0,0.00010958,2]
[347368293,1735737044487,-500.0,0.00010958,2]
[347368294,1735737044496,-1998.26,0.00010958,2]
[347368295,1735737044506,-1558.85,0.00010958,2]
[347368296,1735737044515,-500.0,0.00010958,2]
[347368297,1735737044524,-605.66,0.00010958,2]
[347368298,1735737044534,-8412.06,0.00010958,2]
[347368299,1735737044543,-500.26126525,0.00010958,2]
[347368300,1735737044552,-4409.61,0.00010958,2]
[347368301,1735737044562,-8412.06,0.00010958,2]
[347368302,1735737044571,-2328.72,0.00010958,2]
[347368303,1735737044582,-500.18632381,0.00010958,2]
[347368304,1735737044591,-1270.58,0.00010958,2]
[347368305,1735737044601,-932.49,0.00010958,2]
[347368306,1735737044610,-500.0,0.00010958,2]
[347368307,1735737044620,-500.0,0.00010958,2]
[347368308,1735737044630,-2586.71,0.00010958,2]
[347368309,1735737044641,-500.0,0.00010958,2]
[347368310,1735737044650,-500.0,0.00010958,2]
[347368311,1735737044660,-642.29,0.00010958,2]
[347368312,1735737044669,-500.0,0.00010958,2]
[347368313,1735737044679,-559.34,0.00010958,2]
[347368314,1735737044689,-500.0,0.00010958,2]
[347368315,1735737044698,-610.59,0.00010958,2]
[347368316,1735737044708,-500.0,0.00010958,2]
[347368317,1735737044718,-2002.18,0.00010958,2]
[347368318,1735737044728,-889.46,0.00010958,2]
[347368319,1735737044738,-1584.57,0.00010958,2]
[347368320,1735737044944,-3618.11,0.00010958,2]
[347368321,1735737044954,-3618.11,0.00010958,2]
[347368322,1735737044964,-500.0,0.00010958,2]
[347368323,1735737044974,-500.0,0.00010958,2]
[347368324,1735737044984,-500.0,0.00010958,2]
[347368325,1735737044993,-1401.59,0.00010958,2]
[347368326,1735737045003,-13333.93,0.00010958,2]
[347368327,1735737045012,-500.0,0.00010958,2]
[347368328,1735737045021,-802.84,0.00010958,2]
[347368329,1735737045031,-500.0,0.00010958,2]
[347368330,1735737045040,-2269.48,0.00010958,2]
[347368331,1735737045050,-1103.89,0.00010958,2]
[347368332,1735737045060,-1645.64,0.00010958,2]
[347368333,1735737045070,-3584.63,0.00010958,2]
[347368334,1735737045079,-500.0,0.00010958,2]
[347368335,1735737045089,-1961.32,0.00010958,2]
[347368336,1735737045099,-500.0,0.00010958,2]
[347368337,1735737045109,-2016.64,0.00010958,2]
[347368338,1735737045119,-820.8,0.00010958,2]
[347368339,1735737045129,-1165.82,0.00010958,2]
[347368340,1735737045140,-624.04,0.00010958,2]
[347368341,1735737045150,-500.0,0.00010958,2]
[347368342,1735737045160,-2362.83,0.00010958,2]
[347368343,1735737045170,-653.68,0.00010958,2]
[347368344,1735737045179,-4476.21,0.00010958,2]
[347368345,1735737045188,-500.0,0.00010958,2]
[347368346,1735737045198,-13946.91,0.00010958,2]
[347368347,1735737045207,-500.0,0.00010958,2]
[347368348,1735737045216,-1790.27,0.00010958,2]
[347368349,1735737045225,-1328.63,0.00010958,2]
[347368350,1735737045234,-1315.05,0.00010958,2]
[347368351,1735737045244,-500.0,0.00010958,2]
[347368352,1735737045253,-500.0,0.00010958,2]
[347368353,1735737045263,-755.47,0.00010958,2]
[347368354,1735737045272,-4169.68,0.00010958,2]
[347368355,1735737045282,-500.0,0.00010958,2]
[347368356,1735737045291,-500.0,0.00010958,2]
[347368357,1735737045301,-546.55,0.00010958,2]
[347368358,1735737045310,-500.0,0.00010958,2]
[347368359,1735737045319,-1631.22,0.00010958,2]
[347368360,1735737045329,-500.0,0.00010958,2]
[347368361,1735737045339,-728.18,0.00010958,2]
[347368362,1735737045348,-5709.73,0.00010958,2]
[347368363,1735737045357,-2850.68,0.00010958,2]
[347368364,1735737045369,-2074.33,0.00010958,2]
[347368365,1735737045379,-646.44,0.00010958,2]
[347368366,1735737045390,-500.0,0.00010958,2]
[347368367,1735737045399,-500.0,0.00010958,2]
[347368368,1735737045408,-500.0,0.00010958,2]
[347368369,1735737045418,-1038.14,0.00010958,2]
[347368370,1735737045427,-6731.91,0.00010958,2]
[347368371,1735737045436,-2716.38,0.00010958,2]
[347368372,1735737045446,-500.0,0.00010958,2]
[347368373,1735737045455,-836.96,0.00010958,2]
[347368374,1735737045464,-5338.6,0.00010958,2]
[347368375,1735737045473,-3791.72,0.00010958,2]
[347368376,1735737045483,-2772.28,0.00010958,2]
[347368377,1735737045492,-892.28,0.00010958,2]
[347368378,1735737045501,-1379.2,0.00010958,2]
[347368379,1735737045510,-2311.79,0.00010958,2]
[347368380,1735737045520,-500.0,0.00010958,2]
[347368381,1735737045529,-494.37335519,0.00010958,2]
[347368382,1735737045538,-1332.34,0.00010958,2]
[347368383,1735737045548,-505.1995822,0.00010958,2]
[347368384,1735737045557,-1982.63,0.00010958,2]
[347368385,1735737045566,-602.67,0.00010958,2]
[347368386,1735737045576,-500.0,0.00010958,2]
[347368387,1735737045585,-500.0,0.00010958,2]
[347368388,1735737045594,-4644.99,0.00010958,2]
[347368389,1735737045604,-500.0,0.00010958,2]
[347368390,1735737045613,-500.0,0.00010958,2]
[347368391,1735737045623,-500.0,0.00010958,2]
[347368392,1735737045633,-10623.91,0.00010958,2]
[347368393,1735737045643,-1769.52,0.00010958,2]
[347368394,1735737045652,-667.51,0.00010958,2]
[347368395,1735737045662,-1014.96,0.00010958,2]
[347368396,1735737045672,-1224.76,0.00010958,2]
[347368397,1735737045681,-1668.59,0.00010958,2]
[347368399,1735737045691,-1392.97,0.00010958,2]
[347368401,1735737045700,-500.0,0.00010958,2]
[347368403,1735737045709,-1986.2,0.00010958,2]
[347368404,1735737045718,-500.0,0.00010958,2]
[347368405,1735737045727,-500.55783534,0.00010958,2]
[347368406,1735737045738,-500.0,0.00010958,2]
[347368407,1735737045748,-500.0,0.00010958,2]
[347368408,1735737045757,-500.0,0.00010958,2]
[347368409,1735737045766,-1370.16,0.00010958,2]
[347368410,1735737045775,-2019.47,0.00010958,2]
[347368411,1735737045785,-833.45,0.00010958,2]
[347368412,1735737045794,-1620.95,0.00010958,2]
[347368413,1735737045803,-922.06,0.00010958,2]
[347368414,1735737045813,-500.0,0.00010958,2]
[347368415,1735737045823,-500.0,0.00010958,2]
[347368416,1735737045832,-14521.23,0.00010958,2]
[347368417,1735737045842,-4994.59,0.00010958,2]
[347368418,1735737045852,-500.0,0.00010958,2]
[347368419,1735737045863,-4779.32,0.00010958,2]
[347368420,1735737045873,-743.13,0.00010958,2]
[347368421,1735737045884,-500.0,0.00010958,2]
[347368422,1735737045893,-1389.68,0.00010958,2]
[347368423,1735737045904,-500.0,0.00010958,2]
[347368424,1735737045914,-537.03,0.00010958,2]
[347368425,1735737045923,-4360.03,0.00010958,2]
[347368426,1735737045932,-1123.04,0.00010958,2]
[347368427,1735737045942,-1786.68,0.00010958,2]
[347368428,1735737045952,-500.0,0.00010958,2]
[347368429,1735737045961,-9292.64,0.00010958,2]
[347368430,1735737045971,-15455.39,0.00010958,2]
[347368431,1735737045980,-500.0,0.00010958,2]
[347368432,1735737045989,-1047.71,0.00010958,2]
[347368433,1735737045998,-1010.22,0.00010958,2]
[347368434,1735737046007,-5642.42,0.00010958,2]
[347368435,1735737046017,-600.7,0.00010958,2]
[347368436,1735737046027,-2347.96,0.00010958,2]
[347368437,1735737046037,-5436.34,0.00010958,2]
[347368438,1735737046047,-1967.25,0.00010958,2]
[347368439,1735737046057,-500.0,0.00010958,2]
[347368440,1735737046066,-680.01,0.00010958,2]
[347368441,1735737046076,-1042.23,0.00010958,2]
[347368442,1735737046086,-500.0,0.00010958,2]
[347368443,1735737046095,-500.0,0.00010958,2]
[347368444,1735737046104,-674.76,0.00010958,2]
[347368445,1735737046113,-918.01,0.00010958,2]
[347368446,1735737046123,-1877.57,0.00010958,2]
[347368447,1735737046134,-2365.41,0.00010958,2]
[347368448,1735737046143,-500.0,0.00010958,2]
[347368449,1735737046153,-500.0,0.00010958,2]
[347368450,1735737046162,-975.37,0.00010958,2]
[347368451,1735737046172,-500.0,0.00010958,2]
[347368452,1735737046181,-500.0,0.00010958,2]
[347368454,1735737046190,-708.5,0.00010958,2]
[347368456,1735737046200,-5555.91,0.00010958,2]
[347368457,1735737046209,-560.18,0.00010958,2]
[347368458,1735737046218,-716.65,0.00010958,2]
[347368459,1735737046228,-602.1,0.00010958,2]
[347368460,1735737046237,-879.64,0.00010958,2]
[347368461,1735737046246,-1516.34,0.00010958,2]
[347368462,1735737046255,-500.0,0.00010958,2]